[Event "Mentese WGM 2019"]
[Site "Mentese"]
[Date "2019.06.25"]
[Round "8.1"]
[White "Khomeriki, Nino"]
[Black "Rakhmangulova, Anastasiya"]
[Result "1-0"]
[ECO "D05"]
[WhiteElo "2313"]
[BlackElo "2217"]
[Annotator "NA"]
[PlyCount "71"]
[EventDate "2019.06.24"]
[EventType "schev"]
[EventCountry "TUR"]
[SourceTitle "playchess.com"]
[Source "ChessBase"]
[SourceQuality "1"]
[TimeControl "5400+30"]

1. d4 {[%emt 0:00:30]} Nf6 {[%emt 0:00:30]} 2. Nf3 {[%emt 0:00:00]} d5 {[%emt 0:00:00]} 3. e3 {[%emt 0:00:00]} e6 {[%emt 0:01:00]} 4. Bd3 {[%emt 0:00:30]} Bd6 {[%emt 0:00:30]} 5. Nbd2 {[%emt 0:00:00]} O-O {[%emt 0:00:30]} 6. b3 {[%emt 0:00:00]} c5 {[%emt 0:00:30]} 7. Bb2 {[%emt 0:00:30]} cxd4 {[%emt 0:00:30]} 8. exd4 {[%emt 0:00:00]} Qe7 {[%emt 0:00:00]} 9. O-O {[%emt 0:00:00]} Ba3 {[%emt 0:01:00]} 10. Qc1 {[%emt 0:04:30]} Bxb2 {[%emt 0:00:30]} 11. Qxb2 {[%emt 0:00:30]} Nc6 {[%emt 0:00:30]} 12. Ne5 {[%emt 0:00:30]} Bd7 {[%emt 0:02:30]} 13. Rae1 {[%emt 0:03:30]} Rfd8 {[%emt 0:12:30]} 14. c3 {[%emt 0:02:30]} a5 {[%emt 0:06:30]} 15. f4 {[%emt 0:02:30]} Qd6 {[%emt 0:04:30]} 16. Ndf3 {[%emt 0:05:30]} Ne7 {[%emt 0:12:30]} 17. Qc2 {[%emt 0:02:30]} g6 {[%emt 0:02:30]} 18. Qf2 {[%emt 0:02:30]} Be8 {[%emt 0:05:30]} 19. g4 {[%emt 0:03:30]} b5 {[%emt 0:02:30]} 20. Qh4 {[%emt 0:01:30]} Kg7 {[%emt 0:01:30]} 21. f5 {[%emt 0:00:30]} exf5 {[%emt 0:02:30]} 22. gxf5 {[%emt 0:00:00]} Rdc8 {[%emt 0:04:30]} 23. Ng5 {[%emt 0:01:00]} Rxc3 {[%emt 0:03:30]} 24. Nexf7 {[%emt 0:02:30]} Bxf7 {[%emt 0:01:30]} 25. Nxf7 {[%emt 0:00:30]} Kxf7 {[%emt 0:03:30]} 26. Re6 {[%emt 0:00:30]} g5 {[%emt 0:01:30]} 27. Qe1 {[%emt 0:00:30]} Qb4 {[%emt 0:07:30]} 28. Rxf6+ {[%emt 0:01:30]} Kxf6 {[%emt 0:03:30]} 29. Qe6+ {[%emt 0:00:30]} Kg7 {[%emt 0:00:00]} 30. f6+ {[%emt 0:00:00]} Kh8 {[%emt 0:00:00]} 31. fxe7 {[%emt 0:00:00]} Qxd4+ {[%emt 0:01:30]} 32. Kh1 {[%emt 0:00:00]} Rcc8 {[%emt 0:01:12]} 33. Bxh7 {[%emt 0:04:00]} Qg7 {[%emt 0:04:44]} 34. Bd3 {[%emt 0:01:30]} Re8 {[%emt 0:02:23]} 35. Rf6 {[%emt 0:01:30]} Ra6 {[%emt 0:01:39]} 36. Qxa6 {[%emt 0:00:30]} 1-0

[Event "Mentese WGM 2019"]
[Site "Mentese"]
[Date "2019.06.25"]
[Round "8.3"]
[White "Arda, Cagil Irmak"]
[Black "Novikova, Margarita"]
[Result "1/2-1/2"]
[ECO "C13"]
[WhiteElo "2069"]
[BlackElo "2020"]
[Annotator "NA"]
[PlyCount "75"]
[EventDate "2019.06.24"]
[EventType "schev"]
[EventCountry "TUR"]
[SourceTitle "playchess.com"]
[Source "ChessBase"]
[SourceQuality "1"]
[TimeControl "5400+30"]

1. e4 {[%emt 0:00:30]} e6 {[%emt 0:00:30]} 2. d4 {[%emt 0:00:30]} d5 {[%emt 0:00:00]} 3. Nd2 {[%emt 0:00:00]} dxe4 {[%emt 0:00:00]} 4. Nxe4 {[%emt 0:00:00]} Nd7 {[%emt 0:00:00]} 5. Nf3 {[%emt 0:00:00]} Ngf6 {[%emt 0:00:00]} 6. Bg5 {[%emt 0:00:00]} Be7 {[%emt 0:00:30]} 7. Nxf6+ {[%emt 0:00:30]} Bxf6 {[%emt 0:00:00]} 8. Be3 {[%emt 0:01:30]} O-O {[%emt 0:01:00]} 9. Bd3 {[%emt 0:01:30]} Re8 {[%emt 0:03:30]} 10. Ne5 {[%emt 0:07:30]} Bxe5 {[%emt 0:06:30]} 11. dxe5 {[%emt 0:00:30]} Nxe5 {[%emt 0:00:30]} 12. Bxh7+ {[%emt 0:00:30]} Kxh7 {[%emt 0:00:00]} 13. Qh5+ {[%emt 0:00:00]} Kg8 {[%emt 0:00:00]} 14. Qxe5 {[%emt 0:00:00]} Qd6 {[%emt 0:00:30]} 15. Qe4 {[%emt 0:01:30]} Qd5 {[%emt 0:00:30]} 16. Qh4 {[%emt 0:01:30]} Qa5+ {[%emt 0:01:30]} 17. c3 {[%emt 0:01:30]} Qf5 {[%emt 0:08:30]} 18. Rd1 {[%emt 0:04:30]} e5 {[%emt 0:01:30]} 19. Qa4 {[%emt 0:01:30]} Be6 {[%emt 0:02:30]} 20. O-O {[%emt 0:00:00]} Qg4 {[%emt 0:09:30]} 21. Qxg4 {[%emt 0:02:00]} Bxg4 {[%emt 0:00:30]} 22. f3 {[%emt 0:00:00]} Be6 {[%emt 0:00:30]} 23. a3 {[%emt 0:00:00]} Red8 {[%emt 0:01:30]} 24. Rfe1 {[%emt 0:00:30]} a6 {[%emt 0:07:30]} 25. Rxd8+ {[%emt 0:02:30]} Rxd8 {[%emt 0:00:30]} 26. Bc1 {[%emt 0:00:00]} Bb3 {[%emt 0:00:30]} 27. Kf2 {[%emt 0:01:00]} Re8 {[%emt 0:10:30]} 28. Re2 {[%emt 0:01:30]} f6 {[%emt 0:00:30]} 29. Rd2 {[%emt 0:00:30]} Ba4 {[%emt 0:00:30]} 30. g4 {[%emt 0:02:30]} e4 {[%emt 0:03:30]} 31. Rd4 {[%emt 0:03:30]} Bc6 {[%emt 0:01:30]} 32. fxe4 {[%emt 0:00:30]} Bxe4 {[%emt 0:11:30]} 33. Rd7 {[%emt 0:00:30]} c5 {[%emt 0:03:30]} 34. Be3 {[%emt 0:00:30]} Bc6 {[%emt 0:01:30]} 35. Rc7 {[%emt 0:01:30]} Re4 {[%emt 0:02:30]} 36. h3 {[%emt 0:01:30]} c4 {[%emt 0:01:30]} 37. g5 {[%emt 0:02:30]} fxg5 {[%emt 0:03:30]} 38. Bxg5 {[%emt 0:00:30]} 1/2-1/2

[Event "Mentese WGM 2019"]
[Site "Mentese"]
[Date "2019.06.25"]
[Round "8.4"]
[White "Atalik, Ekaterina"]
[Black "Anacoglu, Cisel"]
[Result "1-0"]
[ECO "D17"]
[WhiteElo "2452"]
[BlackElo "1973"]
[Annotator "ChessBase"]
[PlyCount "101"]
[EventDate "2019.06.24"]
[EventType "schev"]
[EventCountry "TUR"]
[SourceTitle "playchess.com"]
[Source "ChessBase"]
[SourceQuality "1"]
[TimeControl "5400+30"]

1. d4 {[%emt 0:00:30]} d5 {[%emt 0:00:30]} 2. c4 {[%emt 0:00:00]} c6 {[%emt 0:00:00]} 3. Nf3 {[%emt 0:00:00]} Nf6 {[%emt 0:00:00]} 4. Nc3 {[%emt 0:00:30]} dxc4 {[%emt 0:00:00]} 5. a4 {[%emt 0:00:30]} Bf5 {[%emt 0:00:00]} 6. Ne5 {[%emt 0:00:30]} Na6 {[%emt 0:00:30]} 7. Nxc4 {[%emt 0:01:30]} Nb4 {[%emt 0:00:30]} 8. Ne3 {[%emt 0:00:30]} e6 {[%emt 0:00:30]} 9. Nxf5 {[%emt 0:00:30]} exf5 {[%emt 0:00:00]} 10. e3 {[%emt 0:01:30]} Bd6 {[%emt 0:04:00]} 11. g3 {[%emt 0:00:30]} O-O {[%emt 0:01:30]} 12. Bg2 {[%emt 0:00:30]} Qc7 {[%emt 0:04:30]} 13. O-O {[%emt 0:00:30]} Rfe8 {[%emt 0:01:30]} 14. Bd2 {[%emt 0:01:30]} h5 {[%emt 0:01:30]} 15. Qb1 {[%emt 0:07:30]} g6 {[%emt 0:00:30]} 16. e4 {[%emt 0:00:30]} fxe4 {[%emt 0:00:30]} 17. Nxe4 {[%emt 0:00:30]} Nxe4 {[%emt 0:00:30]} 18. Bxe4 {[%emt 0:00:30]} Re6 {[%emt 0:05:30]} 19. Bg2 {[%emt 0:03:30]} Rae8 {[%emt 0:03:30]} 20. Ra3 {[%emt 0:00:30]} h4 {[%emt 0:03:30]} 21. Qd1 {[%emt 0:02:30]} Nd5 {[%emt 0:04:30]} 22. Rb3 {[%emt 0:03:30]} hxg3 {[%emt 0:05:30]} 23. hxg3 {[%emt 0:00:30]} Bf8 {[%emt 0:00:30]} 24. Bxd5 {[%emt 0:12:30]} cxd5 {[%emt 0:00:30]} 25. Qf3 {[%emt 0:00:30]} Re4 {[%emt 0:01:30]} 26. Be3 {[%emt 0:08:30]} Bg7 {[%emt 0:02:30]} 27. Rd1 {[%emt 0:03:30]} Qc6 {[%emt 0:17:30]} 28. a5 {[%emt 0:04:30]} b6 {[%emt 0:06:30]} 29. axb6 {[%emt 0:00:30]} axb6 {[%emt 0:00:30]} 30. Rc1 {[%emt 0:04:30]} Qd6 {[%emt 0:03:30]} 31. Rd3 {[%emt 0:03:30]} Qd7 {[%emt 0:02:30]} 32. Qd1 {[%emt 0:04:30]} Qd6 {[%emt 0:02:30]} 33. Kg2 {[%emt 0:00:30]} Qb4 {[%emt 0:02:30]} 34. Rb3 {[%emt 0:01:30]} Qd6 {[%emt 0:00:30]} 35. Rcc3 {[%emt 0:04:30]} g5 {[%emt 0:12:35]} 36. Bxg5 {[%emt 0:04:30]} Rxd4 {[%emt 0:00:46]} 37. Rd3 {[%emt 0:01:30]} Rxd3 {[%emt 0:00:10]} 38. Qxd3 {[%emt 0:01:30]} d4 {[%emt 0:00:34]} 39. Qf3 {[%emt 0:00:30]} Qc5 {[%emt 0:01:34]} 40. Bf4 {[%emt 0:01:30]} b5 {[%emt 0:01:27]} 41. Qb7 {[%emt 0:03:30]} Rc8 {[%emt 0:02:49]} 42. Rxb5 {[%emt 0:00:30]} Qc6+ {[%emt 0:00:01]} 43. Qxc6 {[%emt 0:00:30]} Rxc6 {[%emt 0:00:03]} 44. b4 {[%emt 0:04:18]} Rc2 {[%emt 0:00:17]} 45. Rd5 {[%emt 0:01:05]} Rb2 {[%emt 0:00:08]} 46. b5 {[%emt 0:00:17]} d3 {[%emt 0:00:30]} 47. Be3 {[%emt 0:01:53]} Kh7 {[%emt 0:03:09]} 48. b6 {[%emt 0:02:39]} Rb3 {[%emt 0:00:03]} 49. Kf3 {[%emt 0:01:13]} Kg6 {[%emt 0:00:17]} 50. Rd6+ {[%emt 0:00:14]} f6 {[%emt 0:00:28]} 51. g4 {[%emt 0:02:07]} 1-0

[Event "Mentese WGM 2019"]
[Site "Mentese"]
[Date "2019.06.25"]
[Round "8.5"]
[White "Doluhanova, Evgeniya"]
[Black "Aydin, Gulenay"]
[Result "1-0"]
[ECO "E91"]
[WhiteElo "2319"]
[BlackElo "1967"]
[Annotator "NA"]
[PlyCount "69"]
[EventDate "2019.06.24"]
[EventType "schev"]
[EventCountry "TUR"]
[SourceTitle "playchess.com"]
[Source "ChessBase"]
[SourceQuality "1"]
[TimeControl "5400+30"]

1. Nf3 {[%emt 0:00:30]} Nf6 {[%emt 0:00:30]} 2. c4 {[%emt 0:00:30]} g6 {[%emt 0:00:00]} 3. Nc3 {[%emt 0:00:30]} Bg7 {[%emt 0:00:00]} 4. e4 {[%emt 0:00:30]} d6 {[%emt 0:00:30]} 5. d4 {[%emt 0:00:00]} O-O {[%emt 0:00:30]} 6. Be2 {[%emt 0:02:00]} Bg4 {[%emt 0:00:30]} 7. Be3 {[%emt 0:00:30]} Nfd7 {[%emt 0:01:30]} 8. Qd2 {[%emt 0:07:30]} c5 {[%emt 0:01:30]} 9. d5 {[%emt 0:03:30]} Na6 {[%emt 0:02:30]} 10. Bh6 {[%emt 0:01:30]} Nc7 {[%emt 0:07:30]} 11. Bxg7 {[%emt 0:00:30]} Kxg7 {[%emt 0:01:30]} 12. h4 {[%emt 0:06:30]} h5 {[%emt 0:04:30]} 13. Nh2 {[%emt 0:05:30]} Bxe2 {[%emt 0:00:30]} 14. Nxe2 {[%emt 0:00:30]} Nf6 {[%emt 0:03:30]} 15. f3 {[%emt 0:10:30]} b5 {[%emt 0:06:30]} 16. cxb5 {[%emt 0:10:30]} Nxb5 {[%emt 0:01:30]} 17. a4 {[%emt 0:01:30]} Nc7 {[%emt 0:00:30]} 18. g4 {[%emt 0:00:00]} Rh8 {[%emt 0:06:30]} 19. Qc3 {[%emt 0:08:00]} Kg8 {[%emt 0:04:30]} 20. g5 {[%emt 0:13:30]} Nd7 {[%emt 0:02:30]} 21. O-O {[%emt 0:00:30]} Rb8 {[%emt 0:02:30]} 22. f4 {[%emt 0:08:21]} Rb4 {[%emt 0:02:30]} 23. f5 {[%emt 0:01:12]} Ne5 {[%emt 0:01:30]} 24. fxg6 {[%emt 0:02:05]} fxg6 {[%emt 0:00:30]} 25. Rf4 {[%emt 0:00:29]} Rh7 {[%emt 0:10:30]} 26. Raf1 {[%emt 0:00:48]} Rf7 {[%emt 0:02:30]} 27. Rxf7 {[%emt 0:09:56]} Nxf7 {[%emt 0:00:00]} 28. Nf4 {[%emt 0:00:29]} Ne5 {[%emt 0:07:00]} 29. Nf3 {[%emt 0:00:15]} Rc4 {[%emt 0:10:39]} 30. Qe3 {[%emt 0:01:24]} Qd7 {[%emt 0:10:53]} 31. Nxe5 {[%emt 0:00:17]} dxe5 {[%emt 0:00:02]} 32. Ng2 {[%emt 0:00:22]} Ne8 {[%emt 0:01:24]} 33. Qf3 {[%emt 0:03:16]} Nd6 {[%emt 0:00:04]} 34. Qf8+ {[%emt 0:00:09]} Kh7 {[%emt 0:00:05]} 35. Qh6+ {[%emt 0:00:06]} 1-0

[Event "Mentese WGM 2019"]
[Site "Mentese"]
[Date "2019.06.26"]
[Round "9.2"]
[White "Zubova, Mariya"]
[Black "Arda, Cagil Irmak"]
[Result "1-0"]
[ECO "C01"]
[WhiteElo "2164"]
[BlackElo "2069"]
[Annotator "NA"]
[PlyCount "77"]
[EventDate "2019.06.24"]
[EventType "schev"]
[EventCountry "TUR"]
[SourceTitle "playchess.com"]
[Source "ChessBase"]
[SourceQuality "1"]
[TimeControl "5400+30"]

1. e4 {[%emt 0:00:30]} e6 {[%emt 0:00:30]} 2. d4 {[%emt 0:00:00]} d5 {[%emt 0:00:00]} 3. exd5 {[%emt 0:00:00]} exd5 {[%emt 0:00:00]} 4. Bd3 {[%emt 0:00:00]} Nc6 {[%emt 0:00:30]} 5. c3 {[%emt 0:00:00]} Bd6 {[%emt 0:00:00]} 6. Qf3 {[%emt 0:00:30]} Nf6 {[%emt 0:02:00]} 7. h3 {[%emt 0:00:00]} h6 {[%emt 0:01:30] C01: French: Exchange Variation} 8. Ne2 {[%emt 0:00:00]} Be6 {[%emt 0:02:30]} 9. O-O {[%emt 0:00:00]} Qd7 {[%emt 0:02:30]} 10. Bf4 {[%emt 0:04:00]} Ne7 {[%emt 0:06:30]} 11. Nd2 {[%emt 0:02:30]} O-O-O {[%emt 0:15:30]} 12. b4 $146 {[%emt 0:03:30]} ({Predecessor:} 12. Rfc1 Kb8 13. c4 dxc4 14. Bxd6 Qxd6 15. Bxc4 {½-½ (28) Barbier,A (1662)-Maurissen,W (1901) Lommel 2012}) 12... Bxf4 {[%emt 0:03:30]} 13. Nxf4 {[%emt 0:00:30]} Bf5 {[%emt 0:00:30]} 14. Rfe1 {[%emt 0:04:30]} Bh7 {[%emt 0:07:30]} 15. Nb3 {[%emt 0:03:30]} Be4 {[%emt 0:10:30]} 16. Bxe4 {[%emt 0:03:30]} dxe4 {[%emt 0:00:30]} 17. Qd1 {[%emt 0:01:30]} Qd6 {[%emt 0:08:30]} 18. Ne2 {[%emt 0:03:30]} Nf5 {[%emt 0:00:30]} 19. Na5 {[%emt 0:05:30]} g5 {[%emt 0:05:30]} 20. Qa4 $15 {[%emt 0:03:30]} Nh4 {[%emt 0:09:30]} 21. Nc4 {[%emt 0:00:30]} Qe6 {[%emt 0:00:30]} 22. Ne5 {[%emt 0:03:30]} Kb8 {[%emt 0:00:30]} 23. Ng3 {[%emt 0:04:30]} Nd5 {[%emt 0:05:54]} 24. Nxe4 {[%emt 0:01:30]} Nxg2 {[%emt 0:01:32]} 25. Nc5 {[%emt 0:04:30]} Qxh3 {[%emt 0:09:02]} 26. Nc6+ {[%emt 0:02:30]} bxc6 {[%emt 0:01:32]} 27. Qxc6 {[%emt 0:00:30]} Qc8 {[%emt 0:00:08]} 28. Na6+ {[%emt 0:00:30]} Qxa6 {[%emt 0:00:04]} 29. Qxa6 {[%emt 0:00:00]} Nxe1 {[%emt 0:00:04]} 30. Rxe1 {[%emt 0:01:00]} Nxc3 {[%emt 0:00:30]} 31. Qc4 {[%emt 0:00:30]} Nd5 {[%emt 0:00:30]} 32. a4 {[%emt 0:00:30]} Nb6 {[%emt 0:00:30]} 33. Qxf7 {[%emt 0:00:30]} Nxa4 {[%emt 0:00:30]} 34. Rc1 {[%emt 0:00:30]} Rc8 {[%emt 0:00:30]} 35. Ra1 {[%emt 0:00:30]} Nb6 {[%emt 0:00:30]} 36. Qa2 {[%emt 0:00:30]} Rcd8 {[%emt 0:00:30]} 37. Qxa7+ {[%emt 0:00:30]} Kc8 {[%emt 0:00:30]} 38. Rc1 {[%emt 0:00:30]} Nd5 {[%emt 0:00:30]} 39. Qa8+ {[%emt 0:07:30]} 1-0

[Event "Mentese WGM 2019"]
[Site "Mentese"]
[Date "2019.06.26"]
[Round "9.3"]
[White "Novikova, Margarita"]
[Black "Atalik, Ekaterina"]
[Result "0-1"]
[ECO "A48"]
[WhiteElo "2020"]
[BlackElo "2452"]
[Annotator "ChessBase"]
[PlyCount "114"]
[EventDate "2019.06.24"]
[EventType "schev"]
[EventCountry "TUR"]
[SourceTitle "playchess.com"]
[Source "ChessBase"]
[SourceQuality "1"]
[TimeControl "5400+30"]

1. d4 {[%emt 0:00:30]} Nf6 {[%emt 0:00:30]} 2. Nf3 {[%emt 0:00:00]} g6 {[%emt 0:00:00]} 3. Bf4 {[%emt 0:00:00]} Bg7 {[%emt 0:00:00]} 4. e3 {[%emt 0:00:30]} c5 {[%emt 0:01:30]} 5. c3 {[%emt 0:00:30]} Qb6 {[%emt 0:01:30]} 6. Qb3 {[%emt 0:02:30]} Qxb3 {[%emt 0:02:30]} 7. axb3 {[%emt 0:02:30]} cxd4 {[%emt 0:00:30]} 8. exd4 {[%emt 0:00:30]} d6 {[%emt 0:01:30]} 9. h3 {[%emt 0:07:30]} Nc6 {[%emt 0:00:30]} 10. b4 {[%emt 0:02:30]} O-O {[%emt 0:00:30]} 11. b5 {[%emt 0:03:30]} Nd8 {[%emt 0:03:30]} 12. Be2 {[%emt 0:05:30]} Ne6 {[%emt 0:01:30]} 13. Bh2 {[%emt 0:01:30]} Nd5 {[%emt 0:00:30]} 14. O-O {[%emt 0:02:30]} Ndf4 {[%emt 0:01:30]} 15. Bc4 {[%emt 0:04:30]} d5 {[%emt 0:01:30]} 16. Bb3 {[%emt 0:00:30]} Bd7 {[%emt 0:01:30]} 17. Na3 {[%emt 0:04:30]} a6 {[%emt 0:00:30]} 18. h4 {[%emt 0:09:30]} axb5 {[%emt 0:02:30]} 19. Nc2 {[%emt 0:05:30]} Nd3 {[%emt 0:11:30]} 20. Rab1 {[%emt 0:04:30]} Nef4 {[%emt 0:05:30]} 21. g3 {[%emt 0:21:30]} Bg4 {[%emt 0:02:30]} 22. Nd2 {[%emt 0:00:30]} Ne2+ {[%emt 0:01:30]} 23. Kg2 {[%emt 0:00:30]} b4 {[%emt 0:01:30]} 24. Ne3 {[%emt 0:02:19]} bxc3 {[%emt 0:02:30]} 25. bxc3 {[%emt 0:00:01]} Be6 {[%emt 0:02:30]} 26. Bc2 {[%emt 0:02:55]} Nxc3 {[%emt 0:03:30]} 27. Rb3 {[%emt 0:01:15]} Bxd4 {[%emt 0:01:30]} 28. Bxd3 {[%emt 0:00:13]} Bxe3 {[%emt 0:02:30]} 29. fxe3 {[%emt 0:00:16]} d4 {[%emt 0:00:30]} 30. Rb2 {[%emt 0:02:23]} dxe3 {[%emt 0:00:30]} 31. Nb1 {[%emt 0:00:44]} Rfd8 {[%emt 0:02:30]} 32. Nxc3 {[%emt 0:00:55]} Rxd3 {[%emt 0:00:30]} 33. Ne2 {[%emt 0:00:30]} Bg4 {[%emt 0:00:30]} 34. Bg1 {[%emt 0:00:30]} Rad8 {[%emt 0:00:30]} 35. Rf4 {[%emt 0:00:30]} Rd2 {[%emt 0:04:30]} 36. Rfb4 {[%emt 0:13:15]} Bxe2 {[%emt 0:00:30]} 37. Bxe3 {[%emt 0:00:10]} Rxb2 {[%emt 0:00:30]} 38. Rxb2 {[%emt 0:00:00]} Bc4 {[%emt 0:00:30]} 39. Rb6 {[%emt 0:00:23]} Bd5+ {[%emt 0:00:00]} 40. Kf2 {[%emt 0:00:05]} Bc6 {[%emt 0:00:00]} 41. Rb2 {[%emt 0:00:36]} f6 {[%emt 0:00:30]} 42. Bc5 {[%emt 0:00:06]} Kf7 {[%emt 0:00:00]} 43. Ke3 {[%emt 0:00:19]} Rd5 {[%emt 0:00:00]} 44. Bb6 {[%emt 0:00:14]} Rf5 {[%emt 0:00:30]} 45. Ke2 {[%emt 0:00:00]} Rf3 {[%emt 0:00:30]} 46. Bf2 {[%emt 0:02:39]} Ra3 {[%emt 0:00:30]} 47. Rb6 {[%emt 0:00:19]} e5 {[%emt 0:00:30]} 48. Rb2 {[%emt 0:00:40]} Ke6 {[%emt 0:00:00]} 49. Rd2 {[%emt 0:00:04]} Kf5 {[%emt 0:01:00]} 50. Rd8 {[%emt 0:00:38]} Bb5+ {[%emt 0:00:30]} 51. Ke1 {[%emt 0:01:03]} Ke4 {[%emt 0:01:30]} 52. Bc5 {[%emt 0:00:18]} Rxg3 {[%emt 0:00:30]} 53. Be7 {[%emt 0:00:05]} f5 {[%emt 0:01:30]} 54. Rh8 {[%emt 0:00:05]} Kf3 {[%emt 0:01:30]} 55. Rxh7 {[%emt 0:00:16]} e4 {[%emt 0:00:00]} 56. Kd2 {[%emt 0:00:55]} e3+ {[%emt 0:01:00]} 57. Kc2 {[%emt 0:00:09]} Rg4 {[%emt 0:00:30]} 0-1

[Event "Mentese WGM 2019"]
[Site "Mentese"]
[Date "2019.06.26"]
[Round "9.4"]
[White "Anacoglu, Cisel"]
[Black "Doluhanova, Evgeniya"]
[Result "0-1"]
[ECO "C65"]
[WhiteElo "1973"]
[BlackElo "2319"]
[Annotator "NA"]
[PlyCount "108"]
[EventDate "2019.06.24"]
[EventType "schev"]
[EventCountry "TUR"]
[SourceTitle "playchess.com"]
[Source "ChessBase"]
[SourceQuality "1"]
[TimeControl "5400+30"]

1. e4 {[%emt 0:00:30]} e5 {[%emt 0:00:30]} 2. Nf3 {[%emt 0:00:00]} Nc6 {[%emt 0:00:00]} 3. Bb5 {[%emt 0:00:00]} Nf6 {[%emt 0:00:00]} 4. d3 {[%emt 0:00:00]} Bc5 {[%emt 0:00:30]} 5. Bxc6 {[%emt 0:00:00]} dxc6 {[%emt 0:00:30]} 6. h3 {[%emt 0:00:00] C65: Ruy Lopez: Berlin Defence (3...Nf6), unusual lines and 4 0-0 Bc5} (6. O-O Bd6 7. Nbd2 Be6 8. d4 Nd7 9. dxe5 Nxe5 10. Nxe5 Bxe5 11. f4 Qd4+ 12. Kh1 Bd6 13. Qe2 O-O-O {½-½ (44) Leko,P (2702)-Wang,H (2795) Hengshui 2019}) 6... O-O {[%emt 0:04:30]} 7. O-O {[%emt 0:00:00]} Nd7 {[%emt 0:00:30]} 8. Be3 {[%emt 0:01:30]} f6 $146 {[%emt 0:01:30]} ({Predecessor:} 8... Bd6 9. Nbd2 Re8 10. Nc4 Nf8 11. a4 c5 12. a5 Ng6 13. Qd2 Bf8 {½-½ (48) Karthikeyan,M (2513)-Balogh,C (2635) Biel 2016}) 9. Nbd2 {[%emt 0:00:30]} Qe7 {[%emt 0:00:30]} 10. a4 {[%emt 0:00:30]} a5 {[%emt 0:01:30]} 11. Nc4 {[%emt 0:00:30]} Rd8 {[%emt 0:04:30]} 12. Qe2 {[%emt 0:01:30]} Nf8 {[%emt 0:01:30]} 13. Nfd2 {[%emt 0:00:30]} b6 {[%emt 0:02:30]} 14. Nb3 {[%emt 0:01:30]} Bxe3 {[%emt 0:00:30]} 15. fxe3 {[%emt 0:01:30]} c5 {[%emt 0:00:30]} 16. Nbd2 {[%emt 0:04:30]} Be6 {[%emt 0:00:30]} 17. b3 {[%emt 0:17:30]} Ra6 {[%emt 0:03:30]} 18. Nb1 {[%emt 0:05:30]} c6 {[%emt 0:02:30]} 19. Nc3 {[%emt 0:02:30]} Rb8 {[%emt 0:05:30]} 20. Na3 {[%emt 0:03:30]} Ra7 {[%emt 0:01:30]} 21. Qf2 {[%emt 0:02:30]} Qd7 {[%emt 0:05:30]} 22. Nc4 {[%emt 0:09:30]} b5 {[%emt 0:05:30]} 23. Nd2 $1 {[%emt 0:00:30]} Qe7 {[%emt 0:01:30]} 24. d4 $15 {[%emt 0:02:30]} (24. axb5 $11 cxb5 25. Qg3) 24... cxd4 {[%emt 0:07:30]} 25. exd4 {[%emt 0:00:30]} exd4 {[%emt 0:00:30]} 26. Qxd4 {[%emt 0:00:00]} Rd7 {[%emt 0:06:30]} 27. Qe3 {[%emt 0:01:00]} Rbd8 {[%emt 0:00:30]} 28. Nf3 {[%emt 0:00:30]} b4 {[%emt 0:06:30]} 29. Ne2 {[%emt 0:00:30]} Bf7 {[%emt 0:02:30]} 30. Ned4 {[%emt 0:04:30]} Qc5 {[%emt 0:04:30]} 31. Nf5 {[%emt 0:04:30]} Qxe3+ {[%emt 0:01:30]} 32. Nxe3 {[%emt 0:00:30]} Re8 {[%emt 0:00:30]} 33. e5 {[%emt 0:01:30]} fxe5 {[%emt 0:05:30]} 34. Ng4 {[%emt 0:00:30]} Ng6 {[%emt 0:00:30]} 35. Rfe1 {[%emt 0:00:30]} e4 {[%emt 0:00:30]} 36. Ng5 {[%emt 0:00:30]} Bd5 {[%emt 0:00:30]} 37. Rad1 {[%emt 0:00:30]} Rde7 {[%emt 0:00:30]} 38. h4 {[%emt 0:00:30]} Nxh4 {[%emt 0:00:30]} 39. Ne3 {[%emt 0:00:30]} Re5 {[%emt 0:00:30]} 40. Nh3 {[%emt 0:00:30]} Nf5 {[%emt 0:00:30]} 41. Nf2 {[%emt 0:00:30]} Nxe3 {[%emt 0:00:30]} 42. Rxe3 {[%emt 0:00:30]} h5 {[%emt 0:00:30]} 43. Rde1 {[%emt 0:02:30]} R8e6 {[%emt 0:09:30]} 44. Nh3 {[%emt 0:00:30]} Rf5 {[%emt 0:02:47]} 45. Nf2 {[%emt 0:00:30]} Rg5 {[%emt 0:02:49]} 46. Nh3 {[%emt 0:00:30]} Rg4 {[%emt 0:00:31]} 47. Nf2 {[%emt 0:00:00]} Rf4 {[%emt 0:00:58]} 48. g3 {[%emt 0:00:00]} Rf3 {[%emt 0:01:06]} 49. Rxf3 {[%emt 0:00:00]} exf3 {[%emt 0:00:02]} 50. Rxe6 {[%emt 0:00:00]} Bxe6 {[%emt 0:00:02]} 51. Nd3 {[%emt 0:00:30]} Bf5 {[%emt 0:00:17]} 52. Kf2 {[%emt 0:00:30]} Bxd3 {[%emt 0:00:14]} 53. cxd3 {[%emt 0:00:00]} g5 {[%emt 0:00:15]} 54. Kxf3 {[%emt 0:00:00]} Kf7 {[%emt 0:00:03]} 0-1